Workbook

Sheet Sheet1
B1: The Graph of a Function
B3: This graphing utility produces the graph
C4: of any desired function
D5: y = f(x)
B6: on any interval from x = a to x = b.
A8: Enter the function in terms of x: f(x) = | F8: x^4-3*x^3+5*x-22
A11: Now enter the interval for x:
C12: xMin = | D12: -3
C13: xMax = | D13: 3
J19: The graph of the function y = | M19: =F8 -> x^4-3*x^3+5*x-22
A20: Click each item below for suggestions and investigations
A21: Item 1
A22: Item 2
A23: Item 3
A24: Item 4
A25: Item 5
A30: Created by: Sheldon P. Gordon
A31: Farmingdale StateCollege
A32: Development of this module was supported by the
A33: NSF's Division of Undergraduate Education
A34: under grants DUE-0310123 and DUE-0442160.

Sheet Sheet2
C1: x | D1: y = f(x)
D2: =Sheet1!#REF! -> 
C3: =Sheet1!D12 -> -3 | D3: =x^4-3*x^3+5*x-22 -> 125
C4: =C3+Sheet2!B$12 -> -2.97 | D4: 119.5524958
C5: =C4+Sheet2!B$12 -> -2.94 | D5: 114.248373
C6: =C5+Sheet2!B$12 -> -2.91 | D6: 109.0852306
C7: =C6+Sheet2!B$12 -> -2.88 | D7: 104.0606874
C8: =C7+Sheet2!B$12 -> -2.85 | D8: 99.17238125
C9: =C8+Sheet2!B$12 -> -2.82 | D9: 94.41796976
C10: =C9+Sheet2!B$12 -> -2.79 | D10: 89.79512981
C11: =C10+Sheet2!B$12 -> -2.76 | D11: 85.30155776
A12: delta x = | B12: =(xMax-xMin)/200 -> 0.03 | C12: =C11+Sheet2!B$12 -> -2.73 | D12: 80.93496941
C13: =C12+Sheet2!B$12 -> -2.7 | D13: 76.6931
C14: =C13+Sheet2!B$12 -> -2.67 | D14: 72.57370421
C15: =C14+Sheet2!B$12 -> -2.64 | D15: 68.57455616
C16: =C15+Sheet2!B$12 -> -2.61 | D16: 64.69344941
C17: =C16+Sheet2!B$12 -> -2.58 | D17: 60.92819696
C18: =C17+Sheet2!B$12 -> -2.55 | D18: 57.27663125
C19: =C18+Sheet2!B$12 -> -2.52 | D19: 53.73660416
C20: =C19+Sheet2!B$12 -> -2.49 | D20: 50.30598701
C21: =C20+Sheet2!B$12 -> -2.46 | D21: 46.98267056
C22: =C21+Sheet2!B$12 -> -2.43 | D22: 43.76456501
C23: =C22+Sheet2!B$12 -> -2.4 | D23: 40.6496
C24: =C23+Sheet2!B$12 -> -2.37 | D24: 37.63572461
C25: =C24+Sheet2!B$12 -> -2.34 | D25: 34.72090736
C26: =C25+Sheet2!B$12 -> -2.31 | D26: 31.90313621
C27: =C26+Sheet2!B$12 -> -2.28 | D27: 29.18041856
C28: =C27+Sheet2!B$12 -> -2.25 | D28: 26.55078125
C29: =C28+Sheet2!B$12 -> -2.22 | D29: 24.01227056
C30: =C29+Sheet2!B$12 -> -2.19 | D30: 21.56295221
C31: =C30+Sheet2!B$12 -> -2.16 | D31: 19.20091136
C32: =C31+Sheet2!B$12 -> -2.13 | D32: 16.92425261
C33: =C32+Sheet2!B$12 -> -2.1 | D33: 14.7311
C34: =C33+Sheet2!B$12 -> -2.07 | D34: 12.61959701
C35: =C34+Sheet2!B$12 -> -2.04 | D35: 10.58790656
C36: =C35+Sheet2!B$12 -> -2.01 | D36: 8.63421101
C37: =C36+Sheet2!B$12 -> -1.98 | D37: 6.75671216
C38: =C37+Sheet2!B$12 -> -1.95 | D38: 4.95363125
C39: =C38+Sheet2!B$12 -> -1.92 | D39: 3.22320896
C40: =C39+Sheet2!B$12 -> -1.89 | D40: 1.56370541
C41: =C40+Sheet2!B$12 -> -1.86 | D41: -0.02659984
C42: =C41+Sheet2!B$12 -> -1.83 | D42: -1.54940779
C43: =C42+Sheet2!B$12 -> -1.8 | D43: -3.0064
C44: =C43+Sheet2!B$12 -> -1.77 | D44: -4.39923859
C45: =C44+Sheet2!B$12 -> -1.74 | D45: -5.72956624
C46: =C45+Sheet2!B$12 -> -1.71 | D46: -6.99900619
C47: =C46+Sheet2!B$12 -> -1.68 | D47: -8.20916224
C48: =C47+Sheet2!B$12 -> -1.65 | D48: -9.36161875
C49: =C48+Sheet2!B$12 -> -1.62 | D49: -10.45794064
C50: =C49+Sheet2!B$12 -> -1.59 | D50: -11.49967339
C51: =C50+Sheet2!B$12 -> -1.56 | D51: -12.48834304
C52: =C51+Sheet2!B$12 -> -1.53 | D52: -13.42545619
C53: =C52+Sheet2!B$12 -> -1.5 | D53: -14.3125
C54: =C53+Sheet2!B$12 -> -1.47 | D54: -15.15094219
C55: =C54+Sheet2!B$12 -> -1.44 | D55: -15.94223104
C56: =C55+Sheet2!B$12 -> -1.41 | D56: -16.68779539
C57: =C56+Sheet2!B$12 -> -1.38 | D57: -17.38904464
C58: =C57+Sheet2!B$12 -> -1.35 | D58: -18.04736875
C59: =C58+Sheet2!B$12 -> -1.32 | D59: -18.66413824
C60: =C59+Sheet2!B$12 -> -1.29 | D60: -19.24070419
C61: =C60+Sheet2!B$12 -> -1.26 | D61: -19.77839824
C62: =C61+Sheet2!B$12 -> -1.23 | D62: -20.27853259
C63: =C62+Sheet2!B$12 -> -1.2 | D63: -20.7424
C64: =C63+Sheet2!B$12 -> -1.17 | D64: -21.17127379
C65: =C64+Sheet2!B$12 -> -1.14 | D65: -21.56640784
C66: =C65+Sheet2!B$12 -> -1.11 | D66: -21.92903659
C67: =C66+Sheet2!B$12 -> -1.08 | D67: =x^4-3*x^3+5*x-22 -> -22.26037504
C68: =C67+Sheet2!B$12 -> -1.05 | D68: -22.56161875
C69: =C68+Sheet2!B$12 -> -1.02 | D69: -22.83394384
C70: =C69+Sheet2!B$12 -> -0.99 | D70: -23.07850699
C71: =C70+Sheet2!B$12 -> -0.96 | D71: -23.29644544
C72: =C71+Sheet2!B$12 -> -0.93 | D72: -23.48887699
C73: =C72+Sheet2!B$12 -> -0.9 | D73: -23.6569
C74: =C73+Sheet2!B$12 -> -0.87 | D74: -23.80159339
C75: =C74+Sheet2!B$12 -> -0.84 | D75: -23.92401664
C76: =C75+Sheet2!B$12 -> -0.81 | D76: -24.02520979
C77: =C76+Sheet2!B$12 -> -0.78 | D77: -24.10619344
C78: =C77+Sheet2!B$12 -> -0.75 | D78: -24.16796875
C79: =C78+Sheet2!B$12 -> -0.72 | D79: -24.21151744
C80: =C79+Sheet2!B$12 -> -0.69 | D80: -24.23780179
C81: =C80+Sheet2!B$12 -> -0.66 | D81: -24.24776464
C82: =C81+Sheet2!B$12 -> -0.63 | D82: -24.24232939
C83: =C82+Sheet2!B$12 -> -0.6 | D83: -24.2224
C84: =C83+Sheet2!B$12 -> -0.57 | D84: -24.18886099
C85: =C84+Sheet2!B$12 -> -0.54 | D85: -24.14257744
C86: =C85+Sheet2!B$12 -> -0.51 | D86: -24.08439499
C87: =C86+Sheet2!B$12 -> -0.48 | D87: -24.01513984
C88: =C87+Sheet2!B$12 -> -0.45 | D88: -23.93561875
C89: =C88+Sheet2!B$12 -> -0.42 | D89: -23.84661904
C90: =C89+Sheet2!B$12 -> -0.39 | D90: -23.74890859
C91: =C90+Sheet2!B$12 -> -0.36 | D91: -23.64323584
C92: =C91+Sheet2!B$12 -> -0.33 | D92: -23.53032979
C93: =C92+Sheet2!B$12 -> -0.3 | D93: -23.4109
C94: =C93+Sheet2!B$12 -> -0.27 | D94: -23.28563659
C95: =C94+Sheet2!B$12 -> -0.24 | D95: -23.15521024
C96: =C95+Sheet2!B$12 -> -0.21 | D96: -23.02027219
C97: =C96+Sheet2!B$12 -> -0.18 | D97: -22.88145424
C98: =C97+Sheet2!B$12 -> -0.15 | D98: -22.73936875
C99: =C98+Sheet2!B$12 -> -0.12 | D99: -22.59460864
C100: =C99+Sheet2!B$12 -> -0.09 | D100: -22.44774739
C101: =C100+Sheet2!B$12 -> -0.06 | D101: -22.29933904
C102: =C101+Sheet2!B$12 -> -0.03 | D102: -22.14991819
C103: =C102+Sheet2!B$12 -> -4.912736884e-15 | D103: -22
C104: =C103+Sheet2!B$12 -> 0.03 | D104: -21.85008019
C105: =C104+Sheet2!B$12 -> 0.06 | D105: -21.70063504
C106: =C105+Sheet2!B$12 -> 0.09 | D106: -21.55212139
C107: =C106+Sheet2!B$12 -> 0.12 | D107: -21.40497664
C108: =C107+Sheet2!B$12 -> 0.15 | D108: -21.25961875
C109: =C108+Sheet2!B$12 -> 0.18 | D109: -21.11644624
C110: =C109+Sheet2!B$12 -> 0.21 | D110: -20.97583819
C111: =C110+Sheet2!B$12 -> 0.24 | D111: -20.83815424
C112: =C111+Sheet2!B$12 -> 0.27 | D112: -20.70373459
C113: =C112+Sheet2!B$12 -> 0.3 | D113: -20.5729
C114: =C113+Sheet2!B$12 -> 0.33 | D114: -20.44595179
C115: =C114+Sheet2!B$12 -> 0.36 | D115: -20.32317184
C116: =C115+Sheet2!B$12 -> 0.39 | D116: -20.20482259
C117: =C116+Sheet2!B$12 -> 0.42 | D117: -20.09114704
C118: =C117+Sheet2!B$12 -> 0.45 | D118: -19.98236875
C119: =C118+Sheet2!B$12 -> 0.48 | D119: -19.87869184
C120: =C119+Sheet2!B$12 -> 0.51 | D120: -19.78030099
C121: =C120+Sheet2!B$12 -> 0.54 | D121: -19.68736144
C122: =C121+Sheet2!B$12 -> 0.57 | D122: -19.60001899
C123: =C122+Sheet2!B$12 -> 0.6 | D123: -19.5184
C124: =C123+Sheet2!B$12 -> 0.63 | D124: -19.44261139
C125: =C124+Sheet2!B$12 -> 0.66 | D125: -19.37274064
C126: =C125+Sheet2!B$12 -> 0.69 | D126: -19.30885579
C127: =C126+Sheet2!B$12 -> 0.72 | D127: -19.25100544
C128: =C127+Sheet2!B$12 -> 0.75 | D128: -19.19921875
C129: =C128+Sheet2!B$12 -> 0.78 | D129: -19.15350544
C130: =C129+Sheet2!B$12 -> 0.81 | D130: -19.11385579
C131: =C130+Sheet2!B$12 -> 0.84 | D131: =x^4-3*x^3+5*x-22 -> -19.08024064
C132: =C131+Sheet2!B$12 -> 0.87 | D132: -19.05261139
C133: =C132+Sheet2!B$12 -> 0.9 | D133: -19.0309
C134: =C133+Sheet2!B$12 -> 0.93 | D134: -19.01501899
C135: =C134+Sheet2!B$12 -> 0.96 | D135: -19.00486144
C136: =C135+Sheet2!B$12 -> 0.99 | D136: -19.00030099
C137: =C136+Sheet2!B$12 -> 1.02 | D137: -19.00119184
C138: =C137+Sheet2!B$12 -> 1.05 | D138: -19.00736875
C139: =C138+Sheet2!B$12 -> 1.08 | D139: -19.01864704
C140: =C139+Sheet2!B$12 -> 1.11 | D140: -19.03482259
C141: =C140+Sheet2!B$12 -> 1.14 | D141: -19.05567184
C142: =C141+Sheet2!B$12 -> 1.17 | D142: -19.08095179
C143: =C142+Sheet2!B$12 -> 1.2 | D143: -19.1104
C144: =C143+Sheet2!B$12 -> 1.23 | D144: -19.14373459
C145: =C144+Sheet2!B$12 -> 1.26 | D145: -19.18065424
C146: =C145+Sheet2!B$12 -> 1.29 | D146: -19.22083819
C147: =C146+Sheet2!B$12 -> 1.32 | D147: -19.26394624
C148: =C147+Sheet2!B$12 -> 1.35 | D148: -19.30961875
C149: =C148+Sheet2!B$12 -> 1.38 | D149: -19.35747664
C150: =C149+Sheet2!B$12 -> 1.41 | D150: -19.40712139
C151: =C150+Sheet2!B$12 -> 1.44 | D151: -19.45813504
C152: =C151+Sheet2!B$12 -> 1.47 | D152: -19.51008019
C153: =C152+Sheet2!B$12 -> 1.5 | D153: -19.5625
C154: =C153+Sheet2!B$12 -> 1.53 | D154: -19.61491819
C155: =C154+Sheet2!B$12 -> 1.56 | D155: -19.66683904
C156: =C155+Sheet2!B$12 -> 1.59 | D156: -19.71774739
C157: =C156+Sheet2!B$12 -> 1.62 | D157: -19.76710864
C158: =C157+Sheet2!B$12 -> 1.65 | D158: -19.81436875
C159: =C158+Sheet2!B$12 -> 1.68 | D159: -19.85895424
C160: =C159+Sheet2!B$12 -> 1.71 | D160: -19.90027219
C161: =C160+Sheet2!B$12 -> 1.74 | D161: -19.93771024
C162: =C161+Sheet2!B$12 -> 1.77 | D162: -19.97063659
C163: =C162+Sheet2!B$12 -> 1.8 | D163: -19.9984
C164: =C163+Sheet2!B$12 -> 1.83 | D164: -20.02032979
C165: =C164+Sheet2!B$12 -> 1.86 | D165: -20.03573584
C166: =C165+Sheet2!B$12 -> 1.89 | D166: -20.04390859
C167: =C166+Sheet2!B$12 -> 1.92 | D167: -20.04411904
C168: =C167+Sheet2!B$12 -> 1.95 | D168: -20.03561875
C169: =C168+Sheet2!B$12 -> 1.98 | D169: -20.01763984
C170: =C169+Sheet2!B$12 -> 2.01 | D170: -19.98939499
C171: =C170+Sheet2!B$12 -> 2.04 | D171: -19.95007744
C172: =C171+Sheet2!B$12 -> 2.07 | D172: -19.89886099
C173: =C172+Sheet2!B$12 -> 2.1 | D173: -19.8349
C174: =C173+Sheet2!B$12 -> 2.13 | D174: -19.75732939
C175: =C174+Sheet2!B$12 -> 2.16 | D175: -19.66526464
C176: =C175+Sheet2!B$12 -> 2.19 | D176: -19.55780179
C177: =C176+Sheet2!B$12 -> 2.22 | D177: -19.43401744
C178: =C177+Sheet2!B$12 -> 2.25 | D178: -19.29296875
C179: =C178+Sheet2!B$12 -> 2.28 | D179: -19.13369344
C180: =C179+Sheet2!B$12 -> 2.31 | D180: -18.95520979
C181: =C180+Sheet2!B$12 -> 2.34 | D181: -18.75651664
C182: =C181+Sheet2!B$12 -> 2.37 | D182: -18.53659339
C183: =C182+Sheet2!B$12 -> 2.4 | D183: -18.2944
C184: =C183+Sheet2!B$12 -> 2.43 | D184: -18.02887699
C185: =C184+Sheet2!B$12 -> 2.46 | D185: -17.73894544
C186: =C185+Sheet2!B$12 -> 2.49 | D186: -17.42350699
C187: =C186+Sheet2!B$12 -> 2.52 | D187: -17.08144384
C188: =C187+Sheet2!B$12 -> 2.55 | D188: -16.71161875
C189: =C188+Sheet2!B$12 -> 2.58 | D189: -16.31287504
C190: =C189+Sheet2!B$12 -> 2.61 | D190: -15.88403659
C191: =C190+Sheet2!B$12 -> 2.64 | D191: -15.42390784
C192: =C191+Sheet2!B$12 -> 2.67 | D192: -14.93127379
C193: =C192+Sheet2!B$12 -> 2.7 | D193: -14.4049
C194: =C193+Sheet2!B$12 -> 2.73 | D194: -13.84353259
C195: =C194+Sheet2!B$12 -> 2.76 | D195: =x^4-3*x^3+5*x-22 -> -13.24589824
C196: =C195+Sheet2!B$12 -> 2.79 | D196: -12.61070419
C197: =C196+Sheet2!B$12 -> 2.82 | D197: -11.93663824
C198: =C197+Sheet2!B$12 -> 2.85 | D198: -11.22236875
C199: =C198+Sheet2!B$12 -> 2.88 | D199: -10.46654464
C200: =C199+Sheet2!B$12 -> 2.91 | D200: -9.66779539
... 3 more rows

Sheet Sheet3
